bitfinex/quotes_ETHUSD_20250217
["timestamp","ask_amount","ask_price","bid_price","bid_amount"]
[1739810391314,3.65493,2736.1,2735.7,3.0]
[1739810391500,3.65498,2736.0,2735.7,0.740998]
[1739810391822,3.6548,2736.2,2735.7,0.740998]
[1739810392110,3.65485,2736.1,2735.7,0.740998]
[1739810392312,3.6548,2736.2,2735.7,0.740998]
[1739810392905,3.65493,2736.1,2735.7,0.740998]
[1739810393116,3.65493,2736.1,2735.8,0.3740998]
[1739810393514,7.3099,2736.1,2735.8,0.3740998]
[1739810393726,3.65493,2736.1,2735.8,0.3740998]
[1739810394030,0.8287,2736.3,2735.8,0.3740998]
[1739810394244,3.65485,2736.1,2735.8,0.3740998]
[1739810394439,3.65496,2736.1,2735.8,0.3740998]
[1739810394642,3.65503,2736.0,2735.8,0.3740998]
[1739810394841,3.65496,2736.1,2735.8,0.3740998]
[1739810394987,4.48333,2736.3,2735.9,0.54845968]
[1739810395339,0.7749,2736.6,2736.0,7.78831838]
[1739810395517,3.65455,2736.4,2736.0,7.78831838]
[1739810396232,3.65483,2736.1,2736.0,0.04329937]
[1739810396927,3.65483,2736.1,2735.8,3.3740998]
[1739810397141,3.65483,2736.1,2736.0,0.04354805]
[1739810397307,3.65497,2736.0,2735.9,0.04380137]
[1739810397494,3.6551,2735.9,2735.5,3.0]
[1739810397890,3.65524,2735.8,2735.5,3.0]
[1739810398103,3.6559,2735.3,2735.0,0.81518358]
[1739810398423,3.6559,2735.3,2735.0,5.27127637]
[1739810398610,3.65573,2735.5,2735.1,3.0]
[1739810398802,3.65587,2735.4,2735.1,3.0]
[1739810399040,3.65584,2735.4,2735.1,3.0]
[1739810399246,3.65584,2735.4,2735.2,0.82712764]
[1739810399758,3.6559,2735.3,2735.2,0.82712764]
[1739810400325,3.65613,2735.2,2734.7,12.05829901]
[1739810400511,3.65613,2735.2,2734.8,3.0]
[1739810400918,0.7527,2735.7,2734.7,4.74501901]
[1739810401226,3.6567,2734.7,2734.4,4.74501901]
[1739810401462,0.8178,2735.4,2734.5,3.0]
[1739810401625,3.65634,2735.0,2734.6,0.7745019]
[1739810402155,3.65667,2734.8,2734.6,0.7745019]
[1739810402312,3.65637,2735.0,2734.5,3.0]
[1739810402516,3.65591,2735.3,2734.7,4.74501901]
[1739810402868,3.65584,2735.4,2734.9,3.0]
[1739810403028,3.65612,2735.2,2734.9,3.0]
[1739810403430,3.65622,2735.1,2734.9,3.0]
[1739810403955,3.65599,2735.3,2734.9,3.8556119]
[1739810404157,3.65571,2735.5,2734.9,3.8556119]
[1739810404339,3.65603,2735.2,2734.1,3.84321957]
[1739810404540,3.65683,2734.7,2734.1,8.58823858]
[1739810404756,3.6566,2734.8,2734.2,3.65734]
[1739810404912,3.65572,2735.5,2734.9,3.65637]
[1739810405112,3.65572,2735.5,2735.0,5.41065601]
[1739810405353,3.65571,2735.5,2735.1,0.03655721]
[1739810405532,3.65571,2735.5,2735.0,5.41065601]
[1739810405727,0.7936,2735.7,2735.1,3.03655721]
[1739810405930,3.65461,2736.3,2735.6,4.74501901]
[1739810406144,3.65461,2736.3,2735.7,3.0]
[1739810406346,3.65497,2736.0,2735.7,3.0]
[1739810406560,3.65473,2736.2,2735.7,3.0]
[1739810406737,0.76,2736.4,2735.7,3.0]
[1739810406738,3.65507,2736.0,2735.7,3.0]
[1739810406938,0.76,2736.4,2735.4,3.0]
[1739810407111,3.65546,2735.7,2735.4,0.85897403]
[1739810407318,3.65546,2735.7,2735.2,3.65603]
[1739810407514,1.27376926,2736.4,2735.1,0.817]
[1739810407833,1.27376926,2736.4,2734.5,8.87]
[1739810407834,3.656,2735.3,2734.8,0.7949]
[1739810408035,3.65572,2735.5,2734.8,7.45139]
[1739810408231,3.65606,2735.2,2734.8,3.7949]
[1739810408478,3.65629,2735.1,2734.9,1.2196619]
[1739810408760,3.65624,2735.1,2734.5,4.74501901]
[1739810408972,7.31253,2735.1,2734.6,3.0]
[1739810409125,4.46623,2735.7,2734.7,3.65668]
[1739810409321,0.8108,2735.7,2734.8,4.74501901]
[1739810409520,3.65565,2735.5,2734.8,8.40149901]
[1739810409831,0.8108,2735.7,2734.5,8.40189901]
[1739810410017,3.65665,2734.8,2734.5,4.74501901]
[1739810410218,0.8108,2735.7,2734.6,3.04433059]
[1739810410672,3.65636,2735.0,2734.6,3.04433059]
[1739810410873,3.65637,2735.0,2734.6,3.04433059]
[1739810411033,3.65637,2735.0,2734.6,4.26845855]
[1739810411472,3.65624,2735.1,2734.6,4.26845855]
[1739810411801,3.65624,2735.1,2734.6,4.30502063]
[1739810411980,3.65586,2735.4,2734.6,4.30502063]
[1739810412148,3.6555,2735.6,2734.6,7.92528855]
[1739810412348,3.6555,2735.6,2734.7,1.26703076]
[1739810412680,0.74347155,2735.8,2734.8,0.04413795]
[1739810412681,3.65644,2734.9,2734.8,0.04413795]
[1739810412978,0.7739,2735.1,2734.1,0.7932]
[1739810413143,3.65728,2734.3,2734.2,0.04471596]
[1739810413352,3.65728,2734.3,2733.9,3.0]
[1739810413565,3.65728,2734.3,2734.0,0.04490869]
[1739810413888,3.65723,2734.4,2734.0,0.04490869]
[1739810414029,3.65751,2734.1,2734.0,0.04490869]
[1739810414386,0.8163,2734.4,2733.5,3.65824]
[1739810414387,3.65781,2733.9,2733.5,0.7583]
[1739810414550,3.65805,2733.7,2733.2,4.44424]
[1739810414749,3.65805,2733.7,2733.3,0.810299]
[1739810415082,3.65805,2733.7,2733.3,3.810299]
[1739810415243,3.65805,2733.7,2733.3,0.810299]
[1739810415448,3.65805,2733.7,2733.2,0.7856]
[1739810415449,3.65855,2733.4,2732.7,0.7856]
[1739810415666,3.65874,2733.2,2732.7,4.4449]
[1739810415864,7.31756,2733.2,2732.5,3.93749218]
[1739810416089,3.65887,2733.1,2732.5,3.75855985]
[1739810416272,3.65887,2733.1,2732.5,1.39392774]
[1739810416476,0.793,2733.0,2732.5,0.09901985]
[1739810416654,0.793,2732.6,2731.1,0.7856]
[1739810416852,3.66097,2731.6,2731.1,0.7856]
[1739810417204,3.66086,2731.6,2731.1,0.7856]
[1739810417358,3.6606,2731.8,2730.8,4.44748]
[1739810417551,3.66089,2731.6,2730.9,3.77021042]
[1739810417903,0.793,2731.9,2730.9,3.66179]
[1739810418053,0.793,2731.9,2730.8,0.7856]
[1739810418258,0.793,2731.9,2731.2,3.66128]
[1739810418483,3.66024,2732.1,2731.3,7.78162598]
[1739810418666,3.66013,2732.2,2731.3,4.8055416]
[1739810418893,0.7609,2732.3,2731.0,0.03660564]
[1739810419079,0.7609,2732.7,2732.1,3.66005]
[1739810419280,0.7609,2732.7,2732.2,3.0]
[1739810419479,0.7609,2732.7,2732.2,6.66004]
[1739810419714,0.7609,2732.7,2732.2,3.0]
[1739810419715,4.42038,2732.7,2732.2,3.0]
[1739810419916,3.65963,2732.6,2731.7,3.66072]
[1739810420212,1.202938,2732.7,2731.5,4.49125]
[1739810420213,3.66001,2732.3,2731.5,4.49125]
[1739810420513,3.66001,2732.3,2731.5,0.8303]
[1739810420514,3.66029,2732.1,2731.5,0.8303]
[1739810420682,3.66001,2732.3,2731.5,0.8303]
[1739810420879,3.66019,2732.1,2731.5,0.8303]
[1739810421268,3.66019,2732.1,2731.2,3.66135]
[1739810421269,4.42485,2732.0,2731.2,3.8185]
[1739810421618,3.66086,2731.6,2731.0,3.6616]
[1739810421769,3.6606,2731.8,2731.1,3.0]
[1739810421971,4.42487,2732.0,2730.8,4.48038]
[1739810421972,4.42487,2732.0,2731.2,3.6613]
[1739810422201,4.42487,2732.0,2731.3,3.66125]
[1739810422383,4.42487,2732.0,2731.2,3.6613]
[1739810422727,3.66068,2731.8,2731.0,3.66165]
[1739810422883,0.73202,2732.1,2730.3,3.6625]
[1739810422884,3.66162,2731.1,2730.3,3.6625]
[1739810423114,0.8091,2731.0,2730.0,4.34802727]
[1739810423314,0.8091,2731.0,2730.5,3.66222]
[1739810423517,0.8091,2731.4,2730.4,3.0]
[1739810423730,3.6619,2730.9,2730.1,0.43480273]
[1739810423930,0.04577404,2731.3,2730.0,4.34802727]
[1739810423931,3.66197,2730.8,2730.0,4.34802727]
[1739810424258,3.66209,2730.7,2730.1,3.66277]
[1739810424402,3.66209,2730.7,2730.1,3.66281]
[1739810424598,3.66183,2730.9,2730.0,4.34802727]
[1739810424798,3.66183,2730.9,2730.2,3.6626]
[1739810425114,3.66159,2731.1,2730.4,3.66246]
[1739810425443,0.8091,2731.4,2730.5,0.04398908]
[1739810425750,0.8091,2731.4,2730.8,3.66181]
[1739810425954,0.8091,2731.4,2730.6,0.04389247]
[1739810426101,0.341,2732.0,2731.2,3.66128]
[1739810426102,4.46889,2731.9,2731.2,3.66128]
[1739810426452,1.289389,2731.9,2731.4,3.66109]
[1739810426605,0.8084,2731.9,2731.6,3.66084]
[1739810426804,3.6602,2732.1,2731.7,0.04283017]
[1739810427038,3.6602,2732.1,2731.5,3.66099]
[1739810427241,3.66059,2731.8,2731.6,0.04292671]
[1739810427553,0.8084,2731.6,2730.6,3.66209]
[1739810427752,3.66134,2731.3,2730.6,3.66209]
[1739810428247,0.8084,2731.6,2730.7,3.0]
[1739810428405,4.46927,2731.6,2730.3,0.7641]
[1739810428607,3.6612,2731.4,2730.8,3.66187]
[1739810428832,3.6612,2731.4,2730.6,3.66215]
[1739810429040,3.6612,2731.4,2730.6,3.66211]
[1739810429204,3.66107,2731.5,2730.8,3.66183]
[1739810429407,3.66129,2731.3,2730.7,3.66199]
[1739810429601,4.9528829,2731.6,2730.9,3.66171]
[1739810429801,3.66107,2731.5,2730.8,3.66191]
[1739810430003,3.6612,2731.4,2730.6,3.66213]
[1739810430245,4.46931,2731.6,2730.4,0.48651627]
[1739810430246,3.66165,2731.1,2730.4,0.48651627]
[1739810430448,3.66165,2731.1,2730.5,3.66229]
[1739810431070,3.66134,2731.3,2730.5,3.66229]
[1739810431252,0.366134,2731.3,2730.8,3.6618]
[1739810431560,3.66099,2731.5,2730.8,3.6618]
[1739810431770,3.66125,2731.4,2730.9,3.66179]
[1739810432070,0.8084,2731.6,2730.4,0.03661817]
[1739810432269,0.8084,2731.6,2731.0,3.66163]
[1739810432479,0.7682,2730.4,2729.9,3.66303]
[1739810432683,0.7682,2730.4,2729.7,3.0]
[1739810432826,0.7682,2730.4,2730.0,7.18571727]
[1739810433027,0.7682,2730.4,2730.0,3.52272727]
[1739810433227,0.7682,2731.1,2730.1,0.03662663]
[1739810433453,3.66177,2731.0,2730.0,4.6979]
[1739810433769,0.7682,2731.1,2730.5,3.66221]
[1739810433942,3.66179,2730.9,2730.3,3.66253]
[1739810434143,3.66169,2731.0,2730.1,3.0]
[1739810434339,0.7682,2731.1,2730.1,6.66279]
[1739810434557,3.66216,2730.7,2730.1,6.66279]
[1739810434923,3.6621,2730.7,2730.1,6.66279]
[1739810435270,4.40466497,2731.2,2730.1,3.0]
[1739810435271,4.42999,2731.0,2730.1,3.0]
[1739810435426,4.9473135,2731.0,2730.4,3.66238]
[1739810436033,4.9473135,2731.0,2730.5,3.66232]
[1739810436236,4.4299,2731.0,2730.5,3.66232]
[1739810436440,4.4299,2731.0,2730.1,3.8229]
[1739810436441,0.7682,2731.0,2730.4,0.03662049]
[1739810436643,4.42941,2731.4,2730.8,3.66187]
[1739810436858,0.7682,2731.4,2730.1,3.8229]
[1739810437037,3.66184,2730.9,2730.1,4.92377273]
[1739810437249,3.66213,2730.7,2730.1,3.66273]
[1739810437464,3.66213,2730.7,2730.2,3.66268]
[1739810438166,0.7682,2730.8,2730.3,3.6626]
[1739810438495,0.7682,2730.8,2730.1,0.03662488]
[1739810438496,3.66214,2730.7,2730.1,6.66278]
[1739810438783,3.66214,2730.7,2730.1,3.66285]
[1739810438984,0.443034,2730.7,2730.1,3.66286]
[1739810439136,0.7682,2730.8,2730.3,3.66258]
[1739810439342,0.7682,2730.8,2730.2,3.6627]
[1739810439651,0.7682,2730.8,2730.4,3.66236]
[1739810440075,0.7682,2730.8,2730.6,3.66206]
[1739810440365,0.7682,2730.8,2730.7,0.08209683]
[1739810440552,0.7682,2731.2,2730.7,3.74408683]
[1739810440880,0.7682,2731.2,2730.6,3.66218]
[1739810440881,1.2836378,2731.2,2730.8,3.74391874]
[1739810441176,3.66179,2731.0,2730.8,0.08199874]
[1739810441483,3.66152,2731.1,2730.5,3.0]
[1739810441640,3.66152,2731.1,2730.9,0.08190066]
[1739810441835,3.66152,2731.1,2730.6,3.66218]
[1739810442359,3.66193,2730.8,2730.7,0.08209683]
[1739810442694,3.66152,2731.1,2730.5,3.0]
[1739810442863,3.66152,2731.1,2730.7,0.08227334]
[1739810443840,4.42972,2731.2,2730.7,0.08227334]
[1739810444041,3.66157,2731.1,2730.7,0.08227334]
[1739810444387,3.66174,2731.0,2730.7,0.08227334]
[1739810444789,3.66174,2731.0,2730.5,6.76152]
[1739810445082,1.2836558,2731.2,2730.5,0.0992]
[1739810445255,3.66164,2731.1,2730.6,0.08237144]
[1739810445458,3.66165,2731.1,2730.6,0.08237144]
[1739810445867,3.66165,2731.1,2730.6,3.74456144]
[1739810446192,3.66167,2731.0,2730.6,0.08237144]
[1739810446556,0.7682,2731.2,2730.6,0.08237144]
[1739810446762,0.7577,2730.8,2729.2,0.1508012]
[1739810446959,0.3864,2729.7,2729.2,0.1508012]
[1739810447266,3.0,2730.3,2729.3,0.07785331]
[1739810447267,0.3864,2730.1,2729.3,0.07785331]
[1739810447467,0.93868254,2730.7,2730.4,3.66245]
[1739810447768,0.3864,2730.7,2730.5,0.07373847]
[1739810448165,3.66221,2730.6,2730.0,3.66289]
[1739810448364,3.66221,2730.6,2730.0,3.66297]
[1739810448607,3.66267,2730.3,2729.8,3.0]
[1739810448917,3.66267,2730.3,2729.5,3.6636]
[1739810448918,3.66274,2730.2,2729.5,3.6636]
[1739810449218,3.66348,2729.7,2729.2,0.1508012]
[1739810449365,4.48176,2729.9,2729.3,3.66394]
[1739810450107,4.48176,2729.9,2729.3,3.66386]
[1739810450108,0.8186,2729.9,2729.3,3.66386]
[1739810450415,0.8186,2729.9,2729.5,3.66364]
[1739810450613,0.55,2730.6,2729.3,3.66386]
[1739810450614,0.7789,2731.2,2729.6,3.7875]
[1739810450767,3.66173,2731.0,2730.4,3.66234]
[1739810450968,3.66182,2730.9,2730.4,3.66234]
[1739810451274,3.66205,2730.8,2730.3,3.0]
[1739810451509,0.04577706,2731.1,2730.3,3.0]
[1739810451711,3.66269,2730.3,2729.6,3.66349]
[1739810452002,0.7789,2730.5,2729.9,3.66313]
[1739810452212,3.66248,2730.4,2729.9,3.66313]
[1739810452367,4.44133,2730.5,2729.9,3.66312]
[1739810452705,3.66253,2730.4,2729.8,3.66325]
[1739810452914,3.66284,2730.2,2729.7,3.0]
[1739810453078,3.66295,2730.1,2729.7,3.0]
[1739810453611,3.66295,2730.1,2729.5,3.66366]
[1739810453612,3.66335,2729.8,2729.2,4.6389012]
[1739810453806,3.6635,2729.7,2729.2,7.4787912]
[1739810453964,3.6635,2729.7,2729.3,3.0]
[1739810454167,3.66301,2730.0,2729.5,3.66356]
[1739810454368,0.8194,2730.2,2729.2,3.18743502]
[1739810454612,0.8288,2730.5,2729.6,3.07462172]
[1739810454779,3.6625,2730.4,2729.9,3.6631]
[1739810454983,3.66272,2730.3,2729.7,4.54403117]
[1739810455183,3.66273,2730.2,2730.0,0.07470671]
[1739810455398,3.6625,2730.4,2729.9,3.6631]
[1739810455714,0.8288,2730.9,2730.4,3.66244]
[1739810455902,4.49062,2730.9,2730.4,3.66244]
[1739810456069,4.49062,2730.9,2730.5,0.07417682]
[1739810456696,3.66201,2730.8,2730.5,0.07417682]
[1739810456884,3.66207,2730.7,2730.2,4.46843]
[1739810457206,4.111091,2730.8,2730.3,0.07437305]
[1739810457409,3.66173,2731.0,2730.3,0.07437305]
[1739810457621,0.8288,2732.0,2730.9,4.7651254]
[1739810457800,3.66051,2731.9,2731.1,3.66152]
[1739810457969,3.66072,2731.7,2731.2,3.66138]
[1739810458171,3.66072,2731.7,2731.2,0.07332342]
[1739810458616,3.66087,2731.6,2731.2,0.07332342]
[1739810458818,3.66126,2731.3,2731.2,0.07332342]
[1739810459110,0.7986,2731.3,2730.6,3.66215]
[1739810459306,3.66143,2731.2,2730.6,3.66215]
[1739810459682,3.66143,2731.2,2730.6,3.0]
[1739810459888,0.7986,2731.3,2730.6,6.66211]
[1739810460118,0.7986,2732.3,2731.2,3.6613]
[1739810460299,4.3841243,2732.1,2730.9,0.03660988]
[1739810460613,3.66137,2731.3,2730.5,3.66231]
[1739810460814,3.66141,2731.2,2730.6,3.6621]
[1739810461015,3.66141,2731.2,2730.7,3.0]
[1739810461202,3.66156,2731.1,2730.7,3.0]
[1739810461722,0.812139,2731.2,2730.4,3.768]
[1739810462024,3.66094,2731.6,2731.0,3.6616]
[1739810462319,3.66015,2732.2,2731.6,3.66077]
[1739810462523,3.66056,2731.9,2731.3,3.0]
[1739810462683,4.026616,2731.9,2731.3,3.0]
[1739810462877,3.6606,2731.8,2731.2,0.768]
[1739810463115,3.66075,2731.7,2731.2,0.768]
[1739810463324,0.7986,2732.3,2731.3,0.03660845]
[1739810463530,3.66013,2732.2,2731.5,3.6609]
[1739810463687,0.7986,2732.3,2731.8,3.66054]
[1739810463888,4.45859,2732.3,2731.6,3.66077]
[1739810464088,0.7986,2732.3,2731.5,3.0]
[1739810464319,0.8247,2732.6,2731.6,3.69739186]
[1739810464622,0.8247,2732.6,2732.0,3.66024]
[1739810464826,4.48422,2732.6,2732.1,3.66017]
[1739810465030,4.48422,2732.6,2731.9,7.46933]
[1739810465195,3.66028,2732.1,2731.6,3.66077]
[1739810465531,3.66008,2732.2,2731.6,3.66078]
[1739810465732,4.392087,2732.2,2731.6,3.66078]
[1739810465914,3.66042,2732.0,2731.3,3.66118]
[1739810466119,3.66054,2731.9,2731.3,3.66118]
[1739810466285,3.66084,2731.7,2731.1,4.49354]
[1739810466685,3.66059,2731.8,2731.2,6.66139]
[1739810466886,0.811,2732.3,2731.8,3.6605]
[1739810467112,3.65979,2732.4,2731.8,7.321]
[1739810467386,0.8182,2732.9,2732.1,3.66011]
[1739810467826,3.65927,2732.8,2732.3,3.65987]
[1739810468122,0.447747,2732.7,2732.4,3.65965]
[1739810468334,0.8182,2733.2,2732.5,0.7832]
[1739810468482,3.659,2733.0,2732.2,7.44317]
[1739810468682,3.65898,2733.0,2732.0,3.66024]
[1739810468882,3.65932,2732.8,2732.2,3.0]
[1739810469088,3.65932,2732.8,2732.2,6.65998]
[1739810469333,0.365898,2732.9,2732.4,3.65975]
[1739810469542,0.8182,2733.2,2732.9,3.65899]
[1739810469830,0.8187,2733.6,2732.7,4.42538]
[1739810470019,3.65846,2733.4,2732.8,3.0]
[1739810470332,3.65886,2733.1,2732.8,0.07084324]
[1739810470686,3.65886,2733.1,2732.6,3.6595]
[1739810470914,3.65886,2733.1,2732.7,0.07094118]
[1739810471233,7.3173,2733.3,2732.8,3.0]
[1739810471539,0.73173,2733.3,2732.9,0.0707453]
[1739810471700,3.65842,2733.5,2732.9,0.0707453]
[1739810471932,0.7515,2733.9,2732.9,0.0707453]
[1739810472099,0.7515,2733.9,2733.0,3.65896]
[1739810472100,3.6583,2733.6,2733.0,3.65896]
[1739810472413,3.65795,2733.8,2733.0,3.65896]
[1739810472414,3.65797,2733.8,2733.2,3.6587]
[1739810472625,0.7515,2733.9,2733.2,3.6587]
[1739810472803,0.7515,2733.9,2733.4,3.65841]
[1739810473008,3.65739,2734.2,2733.7,3.65803]
[1739810473346,3.6577,2734.0,2733.8,0.06986418]
[1739810473639,0.7515,2734.3,2733.8,0.06986418]
[1739810473836,3.65802,2733.8,2733.1,7.31754]
[1739810474132,3.65802,2733.8,2733.2,3.6587]
[1739810474339,0.7515,2734.3,2733.1,3.65871]
[1739810474627,3.65809,2733.7,2733.1,3.65871]
[1739810474831,3.65809,2733.7,2733.2,3.0]
[1739810475033,3.65737,2734.2,2733.2,3.0]
[1739810475242,0.440887,2734.1,2733.2,3.0]
[1739810475526,3.65764,2734.0,2733.4,3.65836]
[1739810475889,4.20698,2734.5,2733.2,0.03658053]
[1739810475890,0.7697,2734.7,2733.7,3.65799]
[1739810476092,3.65702,2734.5,2733.7,3.65799]
[1739810476330,3.65702,2734.5,2733.9,3.6577]
[1739810476491,4.42647,2734.7,2733.5,0.7572]
[1739810476692,3.65692,2734.6,2733.9,3.65765]
[1739810477097,3.6574,2734.2,2733.8,3.0]
[1739810477599,3.65687,2734.6,2733.5,0.7572]
[1739810477935,5.32,2734.6,2733.5,0.7572]
[1739810478091,3.65813,2733.7,2733.1,4.41596]
[1739810478609,3.65813,2733.7,2733.1,0.7572]
[1739810478610,3.65845,2733.4,2733.1,0.7572]
[1739810478931,3.65875,2733.2,2732.7,3.65937]
[1739810479451,0.7697,2733.6,2732.6,0.7572]
[1739810479452,0.04573446,2733.5,2732.6,0.7572]
[1739810479693,3.65946,2732.7,2732.2,0.7572]
[1739810479847,3.6596,2732.6,2732.2,0.7572]
[1739810480050,0.7697,2732.9,2732.2,0.7572]
[1739810480303,4.48109,2733.3,2732.6,3.65942]
[1739810480448,0.448109,2733.3,2732.2,0.7572]
[1739810480648,0.448109,2733.3,2731.9,5.18962901]
[1739810480649,3.65979,2732.4,2731.9,0.8248]
[1739810481068,3.65979,2732.4,2731.9,3.8248]
[1739810481279,3.65979,2732.4,2731.9,0.8248]
[1739810481484,3.66014,2732.2,2731.6,4.45148]
[1739810481691,3.65956,2732.6,2731.7,3.0]
[1739810481895,3.65965,2732.5,2731.8,4.03957]
[1739810482107,3.65865,2733.3,2732.1,3.66018]
[1739810482401,5.18962901,2734.3,2732.0,0.7907]
[1739810482402,3.65697,2734.5,2732.3,3.7907]
[1739810482549,3.65859,2733.3,2732.8,3.0]
[1739810482750,0.74975724,2734.0,2732.6,3.0]
[1739810483066,3.65898,2733.0,2732.7,0.8205]
[1739810483264,3.65801,2733.8,2732.7,0.8205]
[1739810483265,0.55,2733.8,2732.7,0.8205]
[1739810483465,0.55,2733.4,2732.0,0.8217]
[1739810483799,3.65959,2732.6,2732.0,4.48191]
[1739810484104,3.66011,2732.2,2732.0,0.8217]
[1739810484403,3.66011,2732.2,2731.8,0.37907]
[1739810484893,3.66032,2732.1,2731.6,0.811]
[1739810485099,0.8109,2732.5,2731.6,0.811]
[1739810485395,3.66029,2732.1,2731.7,0.06861288]
[1739810485783,3.65997,2732.3,2731.8,3.66051]
[1739810486100,3.8109,2733.1,2731.8,0.45767243]
[1739810486302,3.66033,2732.0,2731.9,0.06841685]
[1739810486455,3.66033,2732.0,2731.6,0.811]
[1739810486662,3.6606,2731.8,2731.6,0.811]
[1739810487041,3.6606,2731.8,2731.7,0.06861288]
[1739810487166,3.66046,2731.9,2731.7,0.06861288]
[1739810487373,7.32101,2731.9,2731.3,4.47845]
[1739810487572,3.66046,2731.9,2731.8,0.06851486]
[1739810487752,3.66009,2732.2,2731.3,0.8172]
[1739810488105,3.66045,2731.9,2731.8,0.06851486]
[1739810488304,3.66099,2731.5,2731.0,0.8076]
[1739810488458,3.66147,2731.2,2731.0,1.7734939]
[1739810488788,3.66147,2731.2,2730.7,4.46965]
[1739810488988,3.66153,2731.1,2730.4,3.66245]
[1739810489302,3.66153,2731.1,2730.4,3.66244]
[1739810489501,3.6618,2730.9,2730.4,3.66246]
[1739810489668,3.6618,2730.9,2730.4,3.0]
[1739810490000,3.66198,2730.8,2730.2,4.4257]
[1739810490176,3.66198,2730.8,2730.4,3.0]
[1739810490369,3.66166,2731.0,2730.4,3.0]
[1739810490698,0.8298,2731.2,2730.4,3.0]
[1739810490699,3.66179,2730.9,2730.4,3.0]
[1739810491202,3.66159,2731.1,2730.3,3.66253]
[1739810491358,3.66181,2730.9,2730.3,4.471352]
[1739810491710,3.66181,2730.9,2730.4,3.0]
[1739810492075,3.66152,2731.1,2730.2,0.763]
[1739810492260,0.8298,2731.2,2729.9,3.66308]
[1739810492261,3.66242,2730.5,2729.9,3.66308]
[1739810492501,3.66242,2730.5,2729.9,4.44898]
[1739810492685,3.66227,2730.6,2729.9,5.260212]
[1739810492893,0.8298,2731.2,2730.1,3.0]
[1739810493288,3.66206,2730.8,2730.1,3.0]
[1739810493877,3.66205,2730.8,2730.1,3.0]
[1739810494111,3.66218,2730.7,2730.1,3.0]
[1739810494656,3.659,2733.0,2730.6,5.18962901]
[1739810494820,0.8105,2732.1,2731.2,4.44431]
[1739810494966,0.8105,2732.1,2731.6,3.66077]
[1739810495308,0.74798487,2733.1,2732.1,3.66011]
[1739810495309,0.8105,2732.6,2732.1,3.66011]
[1739810495513,4.46957,2733.0,2732.2,3.65996]
[1739810495699,3.6594,2732.7,2732.0,6.6603]
[1739810495878,4.2607213,2732.9,2732.0,6.6602]
[1739810496079,0.6014913,2732.9,2732.2,3.66005]
[1739810496407,0.8105,2733.0,2732.4,3.65977]
[1739810496768,4.46951,2733.0,2732.3,3.03659347]
[1739810496972,4.46951,2733.0,2732.3,3.0]
[1739810497167,0.8105,2733.0,2732.4,3.69636348]
[1739810497368,0.7731,2733.6,2732.8,3.65914]
[1739810497568,0.7731,2733.6,2732.8,3.8848769]
[1739810497819,1.49528759,2734.0,2733.0,0.7707]
[1739810498119,3.65815,2733.7,2733.0,0.7707]
[1739810498533,5.15295759,2734.0,2733.1,3.69531478]
[1739810498915,3.658,2733.8,2733.0,0.7707]
[1739810499116,4.53909576,2733.8,2733.0,0.7707]
[1739810499304,4.53909576,2733.8,2733.0,4.42964]
[1739810499852,4.4308,2734.0,2733.2,3.65868]
[1739810500014,3.65779,2733.9,2733.0,4.42959]
[1739810500214,3.65822,2733.6,2733.3,0.06797407]
[1739810500405,3.65822,2733.6,2733.0,0.7707]
[1739810500747,3.65802,2733.8,2733.0,4.42957]
[1739810500929,3.65802,2733.8,2733.1,0.06816989]
[1739810501316,4.101062,2733.8,2733.1,0.06816989]
[1739810502035,3.65808,2733.7,2733.1,0.06816989]
[1739810502258,0.443112,2733.8,2733.1,3.72699989]
[1739810502628,4.101102,2733.8,2733.1,0.06816989]
[1739810502964,3.65825,2733.6,2733.1,0.06816989]
[1739810503166,4.101082,2733.8,2733.1,0.06816989]
[1739810504141,0.7731,2734.0,2733.4,3.65837]
[1739810504471,3.65759,2734.1,2733.5,0.06777827]
[1739810504657,3.65778,2733.9,2733.5,0.06777827]
[1739810504879,1.4956836,2734.3,2733.3,0.03658162]
[1739810505191,0.7269836,2734.3,2733.7,0.7825]
[1739810505389,3.65709,2734.5,2733.7,2.0455229]
[1739810505693,0.7687,2734.7,2733.8,0.06715582]
[1739810505905,3.65737,2734.3,2733.8,0.06715582]
[1739810506053,3.65735,2734.3,2733.8,0.06715582]
[1739810506255,0.72309991,2734.6,2733.8,0.06715582]
[1739810506450,3.65722,2734.4,2733.8,0.06715582]
[1739810506798,4.42541,2734.7,2733.9,3.65774]
[1739810506967,3.65688,2734.6,2733.8,3.4521214]
[1739810507167,3.65688,2734.6,2733.9,7.31548]
[1739810507382,3.65677,2734.7,2734.0,3.72457009]
[1739810507552,3.65696,2734.6,2734.0,0.06696009]
[1739810507757,3.65698,2734.5,2734.0,0.06696009]
[1739810508759,3.65726,2734.3,2734.0,0.06696009]
[1739810508955,3.65726,2734.3,2733.8,3.0]
[1739810509189,3.65698,2734.5,2733.9,0.06705795]
[1739810509806,0.73262595,2734.7,2733.9,0.06705795]
[1739810510007,0.7687,2735.0,2733.9,0.48858978]
[1739810510327,3.65657,2734.8,2734.2,3.7511]
[1739810510612,3.65657,2734.8,2734.3,0.06534104]
[1739810511110,3.65593,2735.3,2734.3,0.06534104]
[1739810511111,3.6562,2735.1,2734.5,3.6569]
[1739810511414,3.65624,2735.1,2734.6,0.06498577]
[1739810511613,3.65631,2735.0,2734.6,0.06498577]
[1739810511770,3.65598,2735.3,2734.6,0.37220858]
[1739810511970,3.65598,2735.3,2734.8,0.7511]
[1739810512277,4.4601,2735.0,2734.9,0.0646826]
[1739810512483,0.55,2734.9,2733.6,0.8253]